[Event "*** Titled Tuesday Blitz"]
[Site "Chess.com"]
[Date "2020.05.05"]
[Round "9"]
[White "Azeryahu"]
[Black "Shota_Azaladze"]
[Result "0-1"]
[WhiteElo "2876"]
[BlackElo "2717"]
[TimeControl "180+1"]
[EndTime "11:47:51 PDT"]
[Termination "Shota_Azaladze won by resignation"]

1. e4 {[%clk 0:03:00.9]} 1... g6 {[%clk 0:02:59.8]} 2. f4 {[%clk 0:02:59]} 2...
Bg7 {[%clk 0:03:00]} 3. Nc3 {[%clk 0:02:59.9]} 3... c6 {[%clk 0:03:00]} 4. Nf3
{[%clk 0:03:00.2]} 4... d5 {[%clk 0:03:00.5]} 5. Qe2 {[%clk 0:02:57.5]} 5... d4
{[%clk 0:02:58.9]} 6. Nd1 {[%clk 0:02:57.4]} 6... c5 {[%clk 0:02:57.7]} 7. Nf2
{[%clk 0:02:57.8]} 7... Nc6 {[%clk 0:02:57.4]} 8. a3 {[%clk 0:02:52.9]} 8... Nf6
{[%clk 0:02:55]} 9. g3 {[%clk 0:02:50.1]} 9... O-O {[%clk 0:02:54.4]} 10. Bg2
{[%clk 0:02:46.6]} 10... e5 {[%clk 0:02:54.5]} 11. O-O {[%clk 0:02:44.3]} 11...
Re8 {[%clk 0:02:53.7]} 12. d3 {[%clk 0:02:44.1]} 12... exf4 {[%clk 0:02:48.1]}
13. gxf4 {[%clk 0:02:43.7]} 13... Nd5 {[%clk 0:02:38.8]} 14. Kh1 {[%clk
0:02:02]} 14... Qc7 {[%clk 0:02:35]} 15. e5 {[%clk 0:02:00.8]} 15... f6 {[%clk
0:02:34.3]} 16. Ng5 {[%clk 0:01:53.7]} 16... Qd8 {[%clk 0:02:16.3]} 17. Qf3
{[%clk 0:01:39.7]} 17... Ne3 {[%clk 0:02:08.2]} 18. Bxe3 {[%clk 0:01:39.5]}
18... fxg5 {[%clk 0:02:07.6]} 19. Bd2 {[%clk 0:01:32.4]} 19... gxf4 {[%clk
0:02:07.5]} 20. Bxf4 {[%clk 0:01:33]} 20... Nxe5 {[%clk 0:01:59.5]} 21. Qg3
{[%clk 0:01:29]} 21... Bf5 {[%clk 0:01:51.8]} 22. Rae1 {[%clk 0:01:17.5]} 22...
Nc6 {[%clk 0:01:50.2]} 23. Ne4 {[%clk 0:01:18]} 23... Bxe4 {[%clk 0:01:42]} 24.
Bxe4 {[%clk 0:01:18.9]} 24... Qd7 {[%clk 0:01:40.9]} 25. h4 {[%clk 0:01:08.5]}
25... Ne5 {[%clk 0:01:32.2]} 26. Rg1 {[%clk 0:01:00.7]} 26... Kh8 {[%clk
0:01:18]} 27. h5 {[%clk 0:01:00.4]} 27... gxh5 {[%clk 0:01:17.4]} 28. Bf5 {[%clk
0:00:46.1]} 28... Qc6+ {[%clk 0:01:09.4]} 29. Be4 {[%clk 0:00:33.8]} 29... Qf6
{[%clk 0:01:00.3]} 30. Ref1 {[%clk 0:00:33.2]} 30... Ng4 {[%clk 0:00:59.9]} 31.
Qh3 {[%clk 0:00:20.1]} 31... Rxe4 {[%clk 0:00:56]} 32. dxe4 {[%clk 0:00:21]}
32... Qg6 {[%clk 0:00:56]} 33. Qf3 {[%clk 0:00:18.2]} 33... Rf8 {[%clk 0:00:55]}
34. Qg2 {[%clk 0:00:14.6]} 34... Re8 {[%clk 0:00:49.8]} 35. Rd1 {[%clk
0:00:09.7]} 35... Rxe4 {[%clk 0:00:48.4]} 36. Bg3 {[%clk 0:00:09.9]} 36... Qe6
{[%clk 0:00:47.6]} 37. Rdf1 {[%clk 0:00:01.8]} 37... Ne3 {[%clk 0:00:45.6]} 38.
Qf3 {[%clk 0:00:01.9]} 38... Nxf1 {[%clk 0:00:41.1]} 39. Rxf1 {[%clk 0:00:02.8]}
39... Re3 {[%clk 0:00:34.9]} 40. Qxb7 {[%clk 0:00:01.7]} 40... Qh3+ {[%clk
0:00:33.3]} 0-1

[Event "*** Titled Tuesday Blitz"]
[Site "Chess.com"]
[Date "2020.05.05"]
[Round "9"]
[White "VALPARAISO37"]
[Black "TargetA"]
[Result "0-1"]
[WhiteElo "2389"]
[BlackElo "2534"]
[TimeControl "180+1"]
[EndTime "11:47:51 PDT"]
[Termination "TargetA won on time"]

1. d4 {[%clk 0:03:00.9]} 1... Nf6 {[%clk 0:02:39.7]} 2. c4 {[%clk 0:02:59.4]}
2... g6 {[%clk 0:02:40.1]} 3. Nc3 {[%clk 0:02:59.1]} 3... Bg7 {[%clk 0:02:40.8]}
4. e4 {[%clk 0:02:59.4]} 4... d6 {[%clk 0:02:40.7]} 5. f3 {[%clk 0:02:58.7]}
5... O-O {[%clk 0:02:40.7]} 6. Be3 {[%clk 0:02:58.7]} 6... c5 {[%clk 0:02:40.7]}
7. Nge2 {[%clk 0:02:58.2]} 7... Nc6 {[%clk 0:02:38.9]} 8. d5 {[%clk 0:02:58.7]}
8... Ne5 {[%clk 0:02:38.8]} 9. Ng3 {[%clk 0:02:59.4]} 9... a6 {[%clk 0:02:32.9]}
10. a4 {[%clk 0:02:57.9]} 10... Qa5 {[%clk 0:02:32.3]} 11. Ra3 {[%clk
0:02:42.4]} 11... Bd7 {[%clk 0:02:24.7]} 12. Be2 {[%clk 0:02:40.4]} 12... h5
{[%clk 0:02:15.5]} 13. O-O {[%clk 0:02:39.7]} 13... e6 {[%clk 0:02:12.7]} 14.
dxe6 {[%clk 0:02:38]} 14... Bxe6 {[%clk 0:02:12.9]} 15. Qxd6 {[%clk 0:02:37.8]}
15... Nxc4 {[%clk 0:02:10.4]} 16. Bxc4 {[%clk 0:02:35.6]} 16... Bxc4 {[%clk
0:02:11.3]} 17. Re1 {[%clk 0:02:27.3]} 17... Rac8 {[%clk 0:02:09.7]} 18. Qd2
{[%clk 0:02:18.1]} 18... Rfd8 {[%clk 0:02:06.7]} 19. Qc1 {[%clk 0:02:15.7]}
19... Qb4 {[%clk 0:01:54.2]} 20. a5 {[%clk 0:02:12.6]} 20... Bb3 {[%clk
0:01:47.6]} 21. Nge2 {[%clk 0:01:50.4]} 21... Rd3 {[%clk 0:01:37.3]} 22. Nf4
{[%clk 0:01:47.5]} 22... Rdd8 {[%clk 0:01:28.5]} 23. Kh1 {[%clk 0:01:40.3]}
23... Kh8 {[%clk 0:01:18]} 24. Bd2 {[%clk 0:01:31.9]} 24... Qc4 {[%clk
0:01:12.4]} 25. Be3 {[%clk 0:01:26]} 25... Kh7 {[%clk 0:01:09.1]} 26. Nh3 {[%clk
0:01:24.9]} 26... Qb4 {[%clk 0:01:05.5]} 27. Ng5+ {[%clk 0:01:24.1]} 27... Kg8
{[%clk 0:01:05.4]} 28. Nh3 {[%clk 0:01:17.4]} 28... c4 {[%clk 0:01:03.9]} 29.
Bb6 {[%clk 0:01:15.1]} 29... Rd7 {[%clk 0:00:56.9]} 30. Nf4 {[%clk 0:01:10.8]}
30... Re8 {[%clk 0:00:53.5]} 31. Nfd5 {[%clk 0:01:06.9]} 31... Nxd5 {[%clk
0:00:53.1]} 32. Nxd5 {[%clk 0:01:06.2]} 32... Rxd5 {[%clk 0:00:52.4]} 33. Bf2
{[%clk 0:00:50.1]} 33... Rd2 {[%clk 0:00:44.8]} 34. Bc5 {[%clk 0:00:22.9]} 34...
Qxc5 {[%clk 0:00:42.9]} 35. Rxb3 {[%clk 0:00:23.3]} 35... Qf2 {[%clk 0:00:40.4]}
36. Rg1 {[%clk 0:00:18.4]} 36... cxb3 {[%clk 0:00:39.8]} 37. Qc7 {[%clk
0:00:17]} 37... Bd4 {[%clk 0:00:35.6]} 0-1

[Event "*** Titled Tuesday Blitz"]
[Site "Chess.com"]
[Date "2020.05.05"]
[Round "9"]
[White "WinstonSilvakov"]
[Black "NefeLV"]
[Result "0-1"]
[WhiteElo "2142"]
[BlackElo "1796"]
[TimeControl "180+1"]
[EndTime "11:47:51 PDT"]
[Termination "NefeLV won by resignation"]

1. d4 {[%clk 0:03:00.9]} 1... g6 {[%clk 0:02:56.1]} 2. Nc3 {[%clk 0:02:51.2]}
2... Bg7 {[%clk 0:02:54.4]} 3. e4 {[%clk 0:02:52.1]} 3... c6 {[%clk 0:02:50.5]}
4. e5 {[%clk 0:02:49.6]} 4... d6 {[%clk 0:02:48.9]} 5. f4 {[%clk 0:02:48.3]}
5... Nh6 {[%clk 0:02:44.8]} 6. Nf3 {[%clk 0:02:46.1]} 6... dxe5 {[%clk 0:02:34]}
7. fxe5 {[%clk 0:02:43.1]} 7... Bg4 {[%clk 0:02:31.7]} 8. Bf4 {[%clk 0:02:41.8]}
8... Bxf3 {[%clk 0:02:29.7]} 9. gxf3 {[%clk 0:02:41.2]} 9... Nf5 {[%clk
0:02:26]} 10. d5 {[%clk 0:02:26.1]} 10... cxd5 {[%clk 0:02:16.5]} 11. Qxd5
{[%clk 0:02:18.5]} 11... Nc6 {[%clk 0:02:05.1]} 12. O-O-O {[%clk 0:02:13.7]}
12... Qxd5 {[%clk 0:01:59.8]} 13. Nxd5 {[%clk 0:02:12.4]} 13... O-O-O {[%clk
0:01:54.8]} 14. Bc4 {[%clk 0:01:54.8]} 14... Na5 {[%clk 0:01:45.2]} 15. Be2
{[%clk 0:01:43.4]} 15... h6 {[%clk 0:01:39.6]} 16. h4 {[%clk 0:01:34.9]} 16...
g5 {[%clk 0:01:33.1]} 17. Bd3 {[%clk 0:01:23.2]} 17... gxf4 {[%clk 0:01:27.7]}
18. Bxf5+ {[%clk 0:01:19.5]} 18... e6 {[%clk 0:01:27.8]} 19. Ne7+ {[%clk
0:01:18.6]} 19... Kc7 {[%clk 0:01:26.6]} 20. Bd3 {[%clk 0:01:09.1]} 20... Bxe5
{[%clk 0:01:13.1]} 21. b4 {[%clk 0:01:04.1]} 21... Rd7 {[%clk 0:01:00.6]} 22.
bxa5 {[%clk 0:00:47.5]} 22... Rxe7 {[%clk 0:00:59.6]} 23. c4 {[%clk 0:00:43.8]}
23... Rd8 {[%clk 0:00:48.4]} 24. Kc2 {[%clk 0:00:42.1]} 24... Bd4 {[%clk
0:00:43.5]} 25. Be4 {[%clk 0:00:16.7]} 25... f5 {[%clk 0:00:36.7]} 26. Bd3
{[%clk 0:00:15.2]} 26... Rg7 {[%clk 0:00:32.1]} 27. Rde1 {[%clk 0:00:14.5]}
27... Rg2+ {[%clk 0:00:30.1]} 28. Kb1 {[%clk 0:00:14.8]} 28... Rb2+ {[%clk
0:00:28.6]} 29. Kc1 {[%clk 0:00:14.7]} 29... Rxa2 {[%clk 0:00:27.4]} 30. Rxe6
{[%clk 0:00:15.2]} 30... Be3+ {[%clk 0:00:24.2]} 31. Kb1 {[%clk 0:00:13]} 31...
Rxa5 {[%clk 0:00:20.4]} 32. Re7+ {[%clk 0:00:10.1]} 32... Kb8 {[%clk 0:00:19.7]}
33. Bc2 {[%clk 0:00:09.4]} 33... Bd4 {[%clk 0:00:17.9]} 34. Bb3 {[%clk
0:00:04.6]} 34... Ra1+ {[%clk 0:00:17.7]} 0-1

[Event "*** Titled Tuesday Blitz"]
[Site "Chess.com"]
[Date "2020.05.05"]
[Round "9"]
[White "ErikRonka"]
[Black "Fins0905"]
[Result "0-1"]
[WhiteElo "2421"]
[BlackElo "2633"]
[TimeControl "180+1"]
[EndTime "11:47:55 PDT"]
[Termination "Fins0905 won on time"]

1. e4 {[%clk 0:03:00.9]} 1... d5 {[%clk 0:02:59]} 2. exd5 {[%clk 0:03:01]} 2...
Qxd5 {[%clk 0:02:59.9]} 3. Nc3 {[%clk 0:03:01]} 3... Qd8 {[%clk 0:02:59.2]} 4.
d4 {[%clk 0:03:01]} 4... Nf6 {[%clk 0:02:58.5]} 5. Nf3 {[%clk 0:03:01.2]} 5...
Bg4 {[%clk 0:02:57.6]} 6. h3 {[%clk 0:03:01.2]} 6... Bxf3 {[%clk 0:02:55.7]} 7.
Qxf3 {[%clk 0:03:00.8]} 7... c6 {[%clk 0:02:56.2]} 8. Bf4 {[%clk 0:03:00.4]}
8... e6 {[%clk 0:02:54.5]} 9. O-O-O {[%clk 0:03:00]} 9... Bb4 {[%clk 0:02:52.7]}
10. Kb1 {[%clk 0:02:57.9]} 10... Bxc3 {[%clk 0:02:49.4]} 11. Qxc3 {[%clk
0:02:57.9]} 11... Nd5 {[%clk 0:02:49.8]} 12. Qf3 {[%clk 0:02:58]} 12... Nxf4
{[%clk 0:02:49.8]} 13. Qxf4 {[%clk 0:02:58.2]} 13... Nd7 {[%clk 0:02:50.1]} 14.
Bd3 {[%clk 0:02:56.7]} 14... Qb8 {[%clk 0:02:25.5]} 15. Qh4 {[%clk 0:02:32.5]}
15... Qd8 {[%clk 0:02:12.1]} 16. Qf4 {[%clk 0:02:19.1]} 16... O-O {[%clk
0:02:00.8]} 17. g4 {[%clk 0:02:18.6]} 17... Nf6 {[%clk 0:01:43.5]} 18. g5 {[%clk
0:01:59.8]} 18... Nd5 {[%clk 0:01:39.4]} 19. Qe4 {[%clk 0:01:57.5]} 19... g6
{[%clk 0:01:38.7]} 20. h4 {[%clk 0:01:54]} 20... Qc7 {[%clk 0:01:08.7]} 21. h5
{[%clk 0:01:16.8]} 21... Qf4 {[%clk 0:01:07.2]} 22. Qg2 {[%clk 0:01:14.2]} 22...
Kg7 {[%clk 0:00:49.8]} 23. Rhe1 {[%clk 0:00:57]} 23... b5 {[%clk 0:00:37.6]} 24.
Re4 {[%clk 0:00:56.4]} 24... Qd6 {[%clk 0:00:37.5]} 25. Qf3 {[%clk 0:00:52]}
25... Rae8 {[%clk 0:00:28.1]} 26. Re5 {[%clk 0:00:50]} 26... c5 {[%clk 0:00:26]}
27. Bxb5 {[%clk 0:00:46.6]} 27... cxd4 {[%clk 0:00:24.3]} 28. h6+ {[%clk
0:00:22.7]} 28... Kg8 {[%clk 0:00:23.1]} 29. Rxd5 {[%clk 0:00:18.3]} 29... exd5
{[%clk 0:00:20.6]} 30. Bxe8 {[%clk 0:00:18]} 30... Rxe8 {[%clk 0:00:21.1]} 31.
Rxd4 {[%clk 0:00:15.7]} 31... Qe5 {[%clk 0:00:10.6]} 32. Rxd5 {[%clk 0:00:05.1]}
32... Qxd5 {[%clk 0:00:09]} 33. Qxd5 {[%clk 0:00:01.8]} 33... Re1+ {[%clk
0:00:08.6]} 0-1

[Event "*** Titled Tuesday Blitz"]
[Site "Chess.com"]
[Date "2020.05.05"]
[Round "9"]
[White "GuerrieroFromLevant"]
[Black "kungmongmanh"]
[Result "0-1"]
[WhiteElo "2369"]
[BlackElo "2551"]
[TimeControl "180+1"]
[EndTime "11:47:55 PDT"]
[Termination "kungmongmanh won by resignation"]

1. e4 {[%clk 0:03:00.9]} 1... e6 {[%clk 0:02:59.7]} 2. d4 {[%clk 0:03:00.4]}
2... d5 {[%clk 0:02:59.9]} 3. Nc3 {[%clk 0:02:58.7]} 3... Nf6 {[%clk 0:02:59.9]}
4. e5 {[%clk 0:02:58.5]} 4... Nfd7 {[%clk 0:02:59.7]} 5. f4 {[%clk 0:02:59.2]}
5... c5 {[%clk 0:03:00.3]} 6. Nf3 {[%clk 0:02:59.8]} 6... Nc6 {[%clk 0:03:00.9]}
7. Be3 {[%clk 0:02:59.8]} 7... Be7 {[%clk 0:03:01.6]} 8. Be2 {[%clk 0:02:58.2]}
8... c4 {[%clk 0:03:01.9]} 9. O-O {[%clk 0:02:58.2]} 9... b5 {[%clk 0:03:00.8]}
10. Nxb5 {[%clk 0:02:56.5]} 10... Rb8 {[%clk 0:02:59.4]} 11. a4 {[%clk
0:02:53.9]} 11... a6 {[%clk 0:02:59.1]} 12. Nd6+ {[%clk 0:02:49.7]} 12... Bxd6
{[%clk 0:02:58.7]} 13. exd6 {[%clk 0:02:50.6]} 13... Nf6 {[%clk 0:02:54]} 14.
Ne5 {[%clk 0:02:46.9]} 14... Qxd6 {[%clk 0:02:53]} 15. b3 {[%clk 0:02:43.1]}
15... cxb3 {[%clk 0:02:45.7]} 16. cxb3 {[%clk 0:02:44]} 16... O-O {[%clk
0:02:42]} 17. Rc1 {[%clk 0:02:42.7]} 17... Nb4 {[%clk 0:02:41.8]} 18. Qe1 {[%clk
0:02:33]} 18... Ne4 {[%clk 0:02:36.7]} 19. Bd2 {[%clk 0:02:17.8]} 19... f6
{[%clk 0:02:09.2]} 20. Nf3 {[%clk 0:02:15.8]} 20... Bd7 {[%clk 0:02:04.6]} 21.
Bxb4 {[%clk 0:02:05.8]} 21... Rxb4 {[%clk 0:02:01.7]} 22. Bd3 {[%clk 0:02:03.7]}
22... f5 {[%clk 0:01:45.4]} 23. Bxa6 {[%clk 0:01:46.1]} 23... Rxb3 {[%clk
0:01:40.4]} 24. Bb5 {[%clk 0:01:34.9]} 24... Bxb5 {[%clk 0:01:38.6]} 25. axb5
{[%clk 0:01:35.8]} 25... Rxb5 {[%clk 0:01:38.6]} 26. Ne5 {[%clk 0:01:33.9]}
26... Rb2 {[%clk 0:01:35.9]} 27. Rc6 {[%clk 0:01:28.3]} 27... Qe7 {[%clk
0:01:28.6]} 28. Nf3 {[%clk 0:01:24.6]} 28... h6 {[%clk 0:01:20.9]} 29. Qc1
{[%clk 0:01:19.6]} 29... Rfb8 {[%clk 0:01:12.2]} 30. Rc8+ {[%clk 0:01:15]} 30...
Kh7 {[%clk 0:01:08.2]} 31. Ne5 {[%clk 0:01:08.5]} 31... Rxc8 {[%clk 0:00:47.9]}
32. Qxc8 {[%clk 0:01:07.3]} 32... Qb4 {[%clk 0:00:47.3]} 33. Nf3 {[%clk
0:01:00]} 33... Qb6 {[%clk 0:00:41.9]} 34. Rc1 {[%clk 0:00:43.7]} 34... Nd2
{[%clk 0:00:34.8]} 35. Ne5 {[%clk 0:00:32.4]} 35... Qxd4+ {[%clk 0:00:33.6]} 36.
Kh1 {[%clk 0:00:32.8]} 36... Ne4 {[%clk 0:00:25]} 37. h3 {[%clk 0:00:28.4]}
37... Qf2 {[%clk 0:00:17.7]} 38. Rg1 {[%clk 0:00:22.1]} 38... Ng3+ {[%clk
0:00:17.6]} 39. Kh2 {[%clk 0:00:22]} 39... Ne2 {[%clk 0:00:16.3]} 40. Nf3 {[%clk
0:00:16.6]} 40... Nxg1 {[%clk 0:00:14.4]} 0-1

[Event "*** Titled Tuesday Blitz"]
[Site "Chess.com"]
[Date "2020.05.05"]
[Round "9"]
[White "starplatinum2030"]
[Black "VinzentSpitzl"]
[Result "0-1"]
[WhiteElo "2147"]
[BlackElo "2387"]
[TimeControl "180+1"]
[EndTime "11:47:56 PDT"]
[Termination "VinzentSpitzl won by checkmate"]

1. e4 {[%clk 0:03:00.4]} 1... c6 {[%clk 0:03:00]} 2. d4 {[%clk 0:02:59.3]} 2...
d5 {[%clk 0:03:00.3]} 3. e5 {[%clk 0:02:59.5]} 3... c5 {[%clk 0:03:00.4]} 4.
dxc5 {[%clk 0:02:59.4]} 4... e6 {[%clk 0:03:00.3]} 5. Be3 {[%clk 0:02:58.1]}
5... Ne7 {[%clk 0:02:58.1]} 6. Nf3 {[%clk 0:02:52.8]} 6... Nd7 {[%clk
0:02:57.7]} 7. c3 {[%clk 0:02:50.9]} 7... Nc6 {[%clk 0:02:55.5]} 8. Bb5 {[%clk
0:02:44.5]} 8... Bxc5 {[%clk 0:02:47.4]} 9. Bxc5 {[%clk 0:02:42]} 9... Nxc5
{[%clk 0:02:47.5]} 10. Nd4 {[%clk 0:02:41.3]} 10... Bd7 {[%clk 0:02:40]} 11. Qg4
{[%clk 0:02:40.8]} 11... Nxd4 {[%clk 0:02:23.3]} 12. Bxd7+ {[%clk 0:02:16.1]}
12... Qxd7 {[%clk 0:02:18.6]} 13. Qxd4 {[%clk 0:02:15.4]} 13... Qb5 {[%clk
0:02:05.7]} 14. b4 {[%clk 0:01:44.7]} 14... Nd3+ {[%clk 0:01:55.5]} 15. Kd2
{[%clk 0:01:44.1]} 15... Nb2 {[%clk 0:01:54.8]} 16. a4 {[%clk 0:01:35.8]} 16...
Nc4+ {[%clk 0:01:35.7]} 17. Ke1 {[%clk 0:01:31.7]} 17... Qc6 {[%clk 0:01:30.7]}
18. Nd2 {[%clk 0:01:25]} 18... O-O {[%clk 0:01:29.7]} 19. Nxc4 {[%clk
0:01:19.1]} 19... dxc4 {[%clk 0:01:30.6]} 20. f3 {[%clk 0:01:13.3]} 20... Rfd8
{[%clk 0:01:29.3]} 21. Qe4 {[%clk 0:01:05.3]} 21... Qb6 {[%clk 0:01:00.4]} 22.
a5 {[%clk 0:00:58]} 22... Qc7 {[%clk 0:00:45.4]} 23. Rd1 {[%clk 0:00:57]} 23...
Rxd1+ {[%clk 0:00:37.8]} 24. Kxd1 {[%clk 0:00:57.9]} 24... Rd8+ {[%clk
0:00:37.3]} 25. Ke2 {[%clk 0:00:50.5]} 25... Qd7 {[%clk 0:00:37.1]} 26. Qe3
{[%clk 0:00:42.6]} 26... Qa4 {[%clk 0:00:36.9]} 27. Kf2 {[%clk 0:00:37.7]} 27...
Qc2+ {[%clk 0:00:30.3]} 28. Kg3 {[%clk 0:00:38]} 28... h6 {[%clk 0:00:27.9]} 29.
Rc1 {[%clk 0:00:34.5]} 29... Qg6+ {[%clk 0:00:22.7]} 30. Kf2 {[%clk 0:00:34.7]}
30... Rd3 {[%clk 0:00:20.2]} 31. Qc5 {[%clk 0:00:28.2]} 31... Rd2+ {[%clk
0:00:19.6]} 32. Ke3 {[%clk 0:00:25.6]} 32... Qxg2 {[%clk 0:00:17.4]} 33. Qxc4
{[%clk 0:00:25.8]} 33... Qf2+ {[%clk 0:00:15.2]} 34. Ke4 {[%clk 0:00:25.7]}
34... Re2+ {[%clk 0:00:13.3]} 35. Kf4 {[%clk 0:00:23.7]} 35... Qxh2+ {[%clk
0:00:13.5]} 36. Kg4 {[%clk 0:00:24.4]} 36... Rg2# {[%clk 0:00:13.7]} 0-1

[Event "*** Titled Tuesday Blitz"]
[Site "Chess.com"]
[Date "2020.05.05"]
[Round "9"]
[White "Kobalia"]
[Black "DortmundCity"]
[Result "1-0"]
[WhiteElo "2751"]
[BlackElo "2459"]
[TimeControl "180+1"]
[EndTime "11:48:02 PDT"]
[Termination "Kobalia won by checkmate"]

1. e4 {[%clk 0:03:00.9]} 1... e6 {[%clk 0:02:56.4]} 2. d3 {[%clk 0:02:58.9]}
2... d5 {[%clk 0:02:56.2]} 3. Nd2 {[%clk 0:02:59.8]} 3... Nf6 {[%clk 0:02:55.9]}
4. Ngf3 {[%clk 0:03:00.1]} 4... Be7 {[%clk 0:02:55.3]} 5. g3 {[%clk 0:03:00.6]}
5... O-O {[%clk 0:02:55.5]} 6. Bg2 {[%clk 0:03:01.3]} 6... dxe4 {[%clk
0:02:50.1]} 7. dxe4 {[%clk 0:03:00.1]} 7... c5 {[%clk 0:02:50.4]} 8. O-O {[%clk
0:02:59.9]} 8... Nc6 {[%clk 0:02:50.8]} 9. Re1 {[%clk 0:02:59.5]} 9... e5 {[%clk
0:02:45.4]} 10. c3 {[%clk 0:02:55.1]} 10... h6 {[%clk 0:02:43.9]} 11. Nc4 {[%clk
0:02:50.6]} 11... Qc7 {[%clk 0:02:44.2]} 12. Ne3 {[%clk 0:02:36.9]} 12... Rd8
{[%clk 0:02:29.4]} 13. Nd5 {[%clk 0:02:28.3]} 13... Qd6 {[%clk 0:02:14.5]} 14.
c4 {[%clk 0:02:24]} 14... Be6 {[%clk 0:02:05.5]} 15. Qc2 {[%clk 0:02:14.2]}
15... Nd4 {[%clk 0:02:00.4]} 16. Nxd4 {[%clk 0:02:13.6]} 16... cxd4 {[%clk
0:02:00.7]} 17. f4 {[%clk 0:02:02.1]} 17... Bxd5 {[%clk 0:01:52]} 18. exd5
{[%clk 0:01:59.2]} 18... exf4 {[%clk 0:01:45.5]} 19. Bxf4 {[%clk 0:01:56.9]}
19... Qd7 {[%clk 0:01:45.5]} 20. Qd2 {[%clk 0:01:46.6]} 20... Rac8 {[%clk
0:01:42.8]} 21. Rac1 {[%clk 0:01:41.9]} 21... b5 {[%clk 0:01:26.8]} 22. cxb5
{[%clk 0:01:33.7]} 22... Rxc1 {[%clk 0:01:20.9]} 23. Qxc1 {[%clk 0:01:29.5]}
23... Bb4 {[%clk 0:01:17.8]} 24. Rd1 {[%clk 0:01:25.8]} 24... Nxd5 {[%clk
0:01:17.9]} 25. Bxd5 {[%clk 0:00:28.2]} 25... Qxd5 {[%clk 0:01:16.8]} 26. Qc6
{[%clk 0:00:24.7]} 26... Qxa2 {[%clk 0:01:08.5]} 27. Bc7 {[%clk 0:00:24.1]}
27... Rd5 {[%clk 0:00:49.3]} 28. Rf1 {[%clk 0:00:20.1]} 28... Rc5 {[%clk
0:00:41.9]} 29. Qe8+ {[%clk 0:00:19.8]} 29... Kh7 {[%clk 0:00:41.9]} 30. Rxf7
{[%clk 0:00:17.9]} 30... Rc1+ {[%clk 0:00:14.6]} 31. Kg2 {[%clk 0:00:14.7]}
31... Qxb2+ {[%clk 0:00:14.9]} 32. Kh3 {[%clk 0:00:11.2]} 32... Re1 {[%clk
0:00:14.3]} 33. Be5 {[%clk 0:00:08.7]} 33... Qb1 {[%clk 0:00:01.8]} 34. Rxg7#
{[%clk 0:00:07.9]} 1-0

[Event "*** Titled Tuesday Blitz"]
[Site "Chess.com"]
[Date "2020.05.05"]
[Round "9"]
[White "Tsukasa06"]
[Black "mariangie523"]
[Result "0-1"]
[WhiteElo "2198"]
[BlackElo "2055"]
[TimeControl "180+1"]
[EndTime "11:48:02 PDT"]
[Termination "mariangie523 won by resignation"]

1. e4 {[%clk 0:03:00.9]} 1... c5 {[%clk 0:02:58.2]} 2. c3 {[%clk 0:02:59.6]}
2... d5 {[%clk 0:02:54.8]} 3. exd5 {[%clk 0:02:59]} 3... Qxd5 {[%clk 0:02:55.3]}
4. d4 {[%clk 0:02:58.8]} 4... cxd4 {[%clk 0:02:49.8]} 5. cxd4 {[%clk 0:02:58.3]}
5... Nc6 {[%clk 0:02:32.6]} 6. Nf3 {[%clk 0:02:57.3]} 6... Bg4 {[%clk
0:02:31.9]} 7. Be2 {[%clk 0:02:57]} 7... O-O-O {[%clk 0:02:04.5]} 8. Nc3 {[%clk
0:02:55.1]} 8... Qa5 {[%clk 0:02:02.9]} 9. Be3 {[%clk 0:02:48.7]} 9... Nf6
{[%clk 0:01:55.9]} 10. O-O {[%clk 0:02:47.7]} 10... e5 {[%clk 0:01:30.2]} 11.
Rc1 {[%clk 0:02:33.2]} 11... Bxf3 {[%clk 0:00:34.1]} 12. Bxf3 {[%clk 0:02:31.8]}
12... exd4 {[%clk 0:00:34.3]} 13. Bxd4 {[%clk 0:02:26.6]} 13... Rxd4 {[%clk
0:00:31.7]} 14. Qe2 {[%clk 0:01:53.3]} 14... Bd6 {[%clk 0:00:25.8]} 15. Nb5
{[%clk 0:01:48.1]} 15... Re8 {[%clk 0:00:24.7]} 16. Nxd6+ {[%clk 0:00:33.9]}
16... Rxd6 {[%clk 0:00:20.6]} 17. Qc2 {[%clk 0:00:33.2]} 17... Kb8 {[%clk
0:00:18.8]} 18. b4 {[%clk 0:00:32.5]} 18... Qd8 {[%clk 0:00:16.5]} 19. b5 {[%clk
0:00:31.1]} 19... Nd4 {[%clk 0:00:16]} 20. Qc3 {[%clk 0:00:28.8]} 20... Ne4
{[%clk 0:00:12.7]} 21. Bxe4 {[%clk 0:00:26.4]} 21... Ne2+ {[%clk 0:00:10.1]} 22.
Kh1 {[%clk 0:00:25.9]} 22... Nxc3 {[%clk 0:00:11]} 23. Rxc3 {[%clk 0:00:25.3]}
23... Rxe4 {[%clk 0:00:11.3]} 24. Rf3 {[%clk 0:00:24.6]} 24... f6 {[%clk
0:00:10.8]} 25. h3 {[%clk 0:00:24.6]} 25... Red4 {[%clk 0:00:11.1]} 26. Kh2
{[%clk 0:00:23.7]} 26... Rd1 {[%clk 0:00:11.6]} 27. Rxd1 {[%clk 0:00:23.3]}
27... Rxd1 {[%clk 0:00:12.1]} 28. Rg3 {[%clk 0:00:24.2]} 28... g5 {[%clk
0:00:11.1]} 29. Rf3 {[%clk 0:00:23]} 29... Qd6+ {[%clk 0:00:10.9]} 30. g3 {[%clk
0:00:22.6]} 30... Rd3 {[%clk 0:00:11.1]} 31. Rf5 {[%clk 0:00:20.3]} 31... Qe6
{[%clk 0:00:10.4]} 32. g4 {[%clk 0:00:19.7]} 32... h5 {[%clk 0:00:09.5]} 33. Kg2
{[%clk 0:00:18.1]} 33... hxg4 {[%clk 0:00:09.7]} 34. hxg4 {[%clk 0:00:18.1]}
34... Rd4 {[%clk 0:00:09.7]} 35. f3 {[%clk 0:00:17.1]} 35... Rf4 {[%clk
0:00:10.1]} 36. Rc5 {[%clk 0:00:15.8]} 36... Qe2+ {[%clk 0:00:09.2]} 37. Kg1
{[%clk 0:00:15]} 37... Qxf3 {[%clk 0:00:09.1]} 38. Rc2 {[%clk 0:00:13.5]} 38...
Rxg4+ {[%clk 0:00:08.5]} 39. Kh2 {[%clk 0:00:13.6]} 39... Qg3+ {[%clk 0:00:08]}
0-1